bitfinex-derivatives/quotes_SOLF0:USTF0_20260213
["timestamp","ask_amount","ask_price","bid_price","bid_amount"]
[1770983278378,11.2176,80.291,80.241,4.72163136]
[1770983279184,11.2176,80.291,80.246,4.7232576]
[1770983280183,3.18041321,80.32,80.271,4.7232576]
[1770983280488,3.18041321,80.33,80.271,4.7232576]
[1770983280691,3.18041321,80.33,80.281,4.72386843]
[1770983281781,3.18041321,80.32,80.281,4.72386843]
[1770983283191,3.18041321,80.33,80.281,4.72386843]
[1770983283784,11.2123,80.329,80.283,11.2186]
[1770983283994,3.18041321,80.32,80.283,11.2186]
[1770983284386,3.18041321,80.32,80.281,4.72386843]
[1770983285092,3.18041321,80.32,80.271,4.71218356]
[1770983285793,11.2138,80.318,80.272,11.2201]
[1770983287083,3.18041321,80.31,80.272,11.2201]
[1770983287287,11.2138,80.318,80.272,11.2201]
[1770983287487,3.18041321,80.32,80.277,11.2194]
[1770983287888,190.98524842,80.336,80.278,4.72151375]
[1770983288089,3.18041321,80.33,80.278,4.72151375]
[1770983288685,3.18041321,80.33,80.288,11.2179]
[1770983290292,14.39261321,80.33,80.28,11.2191]
[1770983290493,3.18041321,80.31,80.28,4.72328965]
[1770983291097,3.18041321,80.32,80.28,4.72328965]
[1770983291898,3.18041321,80.31,80.267,4.71610414]
[1770983292097,3.18041321,80.3,80.267,4.71610414]
[1770983293204,11.2165,80.299,80.267,4.71610414]
[1770983295004,11.2173,80.294,80.267,4.71610414]
[1770983295200,3.18041321,80.31,80.267,4.71610414]
[1770983296304,3.8781599,80.331,80.271,4.75107928]
[1770983296501,129.44041321,80.33,80.281,4.75107928]
[1770983296805,129.42041321,80.33,80.281,4.75107928]
[1770983297605,3.18041321,80.33,80.281,4.75107928]
[1770983297907,11.2137,80.319,80.281,4.75107928]
[1770983298807,3.18041321,80.32,80.261,4.75722665]
[1770983299303,127.04,80.319,80.261,4.75722665]
[1770983299509,11.2151,80.31,80.261,4.75722665]
[1770983299996,3.18041321,80.32,80.27,3.18041321]
[1770983300200,3.18041321,80.32,80.271,4.75722665]
[1770983300506,11.2148,80.311,80.271,4.75722665]
[1770983301506,11.214,80.317,80.274,4.74847761]
[1770983302304,11.2147,80.312,80.274,4.74847761]
[1770983302708,11.2156,80.306,80.274,4.74847761]
[1770983303503,11.2145,80.313,80.274,4.74847761]
[1770983307508,11.2137,80.319,80.276,4.74787164]
[1770983308603,128.38,80.327,80.286,4.75166727]
[1770983308604,11.2126,80.327,80.286,4.75166727]
[1770983308805,11.2126,80.327,80.28,3.17780482]
[1770983308806,11.2126,80.327,80.291,4.75166727]
[1770983310611,3.17780482,80.32,80.288,11.218]
[1770983312204,3.17780482,80.32,80.279,11.2192]
[1770983312205,11.2139,80.318,80.279,11.2192]
[1770983313313,11.2139,80.318,80.278,4.75166727]
[1770983313614,3.17780482,80.31,80.272,11.2202]
[1770983313813,11.2139,80.318,80.272,11.2202]
[1770983314516,11.2147,80.312,80.272,11.2202]
[1770983315514,3.17780482,80.31,80.272,11.2202]
[1770983316216,11.2151,80.309,80.267,4.79885191]
[1770983317723,11.2151,80.309,80.269,4.79880426]
[1770983318025,3.17780482,80.32,80.269,4.79880426]
[1770983318218,3.17780482,80.3,80.257,4.79880426]
[1770983318823,11.219,80.281,80.257,4.79880426]
[1770983319030,11.219,80.281,80.246,4.7901818]
[1770983319327,128.72,80.314,80.251,4.7901818]
[1770983319625,3.17780482,80.3,80.251,4.7901818]
[1770983320024,3.17780482,80.3,80.259,4.7901818]
[1770983321026,128.72,80.314,80.238,259.50035671]
[1770983321027,3.17780482,80.28,80.247,16.02424939]
[1770983321323,11.2181,80.288,80.249,11.2235]
[1770983321520,3.17780482,80.29,80.25,4.80054939]
[1770983322316,11.46710874,80.313,80.25,4.80054939]
[1770983322622,3.17780482,80.3,80.251,4.80054939]
[1770983323827,3.17780482,80.29,80.251,4.80054939]
[1770983325525,3.17780482,80.29,80.228,15.26545321]
[1770983325526,3.17780482,80.27,80.221,4.79607562]
[1770983325720,3.17780482,80.25,80.207,4.79607562]
[1770983325926,11.2239,80.247,80.207,4.79607562]
[1770983326924,14.40260482,80.24,80.207,4.79607562]
[1770983327127,3.17780482,80.23,80.194,4.79845804]
[1770983328324,11.2273,80.222,80.172,4.79845804]
[1770983328526,3.17780482,80.22,80.172,4.79845804]
[1770983329233,11.2273,80.222,80.17,3.17780482]
[1770983329234,14.40400482,80.23,80.175,4.79805663]
[1770983329432,14.40400482,80.23,80.181,4.79805663]
[1770983329934,11.2271,80.223,80.181,4.79805663]
[1770983333633,11.2281,80.217,80.181,4.79805663]
[1770983333832,11.2281,80.217,80.17,14.41230482]
[1770983334038,11.2281,80.217,80.171,4.83645741]
[1770983334639,3.17780482,80.22,80.173,4.83645741]
[1770983334834,11.227,80.225,80.173,4.83645741]
[1770983335035,3.17780482,80.23,80.173,4.83645741]
[1770983335930,11.2278,80.218,80.173,4.83645741]
[1770983337642,3.17780482,80.22,80.173,4.83645741]
[1770983337938,3.17780482,80.19,80.129,4.87945676]
[1770983338136,3.17780482,80.19,80.141,4.87945676]
[1770983338336,3.17780482,80.18,80.141,4.87945676]
[1770983338842,3.17780482,80.18,80.127,4.8644417]
[1770983339840,11.2333,80.179,80.128,11.2404]
[1770983340240,3.17780482,80.17,80.127,4.8644417]
[1770983340538,3.17780482,80.16,80.113,4.8644417]
[1770983340736,3.17780482,80.17,80.113,4.8644417]
[1770983340938,3.17780482,80.15,80.09,4.93153486]
[1770983341142,99.5,80.185,80.09,4.93153486]
[1770983341143,3.17780482,80.13,80.09,4.93153486]
[1770983341643,3.17780482,80.13,80.08,3.17780482]
[1770983342444,3.17780482,80.13,80.077,4.93153486]
[1770983342645,22.4653,80.184,80.099,11.2445]
[1770983342944,3.17780482,80.14,80.099,11.2445]
[1770983343144,3.17780482,80.14,80.091,11.2455]
[1770983343834,3.17780482,80.14,80.083,11.2466]
[1770983344039,3.17780482,80.14,80.083,4.93760116]
[1770983344746,3.17780482,80.14,80.051,2.17184404]
[1770983344747,3.17780482,80.13,80.07,4.88562454]
[1770983344944,3.17780482,80.13,80.071,4.88562454]
[1770983345340,3.17780482,80.13,80.089,11.2458]
[1770983345544,3.17780482,80.14,80.091,4.88562454]
[1770983346546,3.17780482,80.16,80.111,4.84173451]
[1770983347143,11.2361,80.159,80.111,4.84173451]
[1770983347338,11.2361,80.159,80.093,11.2452]
[1770983347339,3.17780482,80.15,80.1,3.17780482]
[1770983348250,3.17780482,80.15,80.1,14.42210482]
[1770983349148,3.17780482,80.14,80.095,4.84173451]
[1770983349453,3.17780482,80.13,80.082,4.60862952]
[1770983350750,3.17780482,80.12,80.082,4.60862952]
[1770983350948,3.17780482,80.12,80.061,4.61747915]
[1770983351152,3.17780482,80.11,80.061,4.61747915]
[1770983351647,11.2432,80.109,80.062,11.2497]
[1770983353456,11.2432,80.109,80.061,4.61747915]
[1770983354047,11.2419,80.118,80.062,4.61767944]
[1770983354855,11.2419,80.118,80.068,4.43346893]
[1770983355752,37.47,80.18,80.04,8.5566896]
[1770983355753,104.86,80.149,80.076,4.43346893]
[1770983356361,8.5566896,80.15,80.076,4.43346893]
[1770983356761,11.238,80.145,80.097,4.42510007]
[1770983356955,8.5566896,80.17,80.097,4.42510007]
[1770983357460,11.237,80.153,80.106,4.42510007]
[1770983358561,11.237,80.153,80.108,11.2432]
[1770983359953,11.2359,80.161,80.108,11.2432]
[1770983360157,8.5566896,80.17,80.116,4.41115913]
[1770983360356,8.5566896,80.18,80.116,4.41115913]
[1770983360563,11.2348,80.169,80.116,4.41115913]
[1770983361360,11.2337,80.176,80.125,11.2407]
[1770983361560,11.2337,80.176,80.116,4.41115913]
[1770983362155,11.2347,80.169,80.117,11.2418]
[1770983362353,11.2347,80.169,80.118,4.41263704]
[1770983362555,8.5566896,80.18,80.118,4.41263704]
[1770983362756,11.2356,80.162,80.117,11.2419]
[1770983363266,11.2347,80.169,80.123,11.241]
[1770983363563,126.9,80.196,80.124,4.41127454]
[1770983364267,8.5566896,80.2,80.124,4.41127454]
[1770983364457,127.16,80.199,80.124,4.41127454]
[1770983364858,11.2335,80.178,80.127,4.43641792]
[1770983365158,127.16,80.199,80.127,4.43641792]
[1770983366164,11.2353,80.165,80.117,11.2419]
[1770983367164,11.2353,80.165,80.118,4.42984503]
[1770983370068,11.2353,80.165,80.122,11.2412]
[1770983370470,11.2353,80.165,80.122,15.68533554]
[1770983373067,11.2343,80.172,80.125,4.46604159]
[1770983373266,127.62,80.196,80.125,4.46604159]
[1770983373971,11.2329,80.182,80.133,4.46604159]
[1770983375364,11.232,80.188,80.143,4.46813252]
[1770983376668,11.2305,80.199,80.151,4.46790919]
[1770983377177,3.18880842,80.2,80.151,4.46790919]
[1770983377971,11.2316,80.192,80.151,4.46790919]
[1770983378172,3.18880842,80.2,80.151,4.46790919]
[1770983378470,128.46,80.199,80.151,4.46790919]
[1770983378671,11.2306,80.198,80.153,11.2368]
[1770983379472,11.2314,80.193,80.151,4.46790919]
[1770983380072,11.2326,80.184,80.151,4.46790919]
[1770983380273,11.2326,80.184,80.14,18.90236307]
[1770983380772,11.2326,80.184,80.141,4.47402847]
[1770983381973,11.2315,80.192,80.151,4.47402847]
[1770983382176,192.74712174,80.219,80.17,3.18880842]
[1770983382373,129.54,80.218,80.171,4.47402847]
[1770983382874,11.2284,80.214,80.171,15.70832847]
[1770983383770,11.2284,80.214,80.172,4.47325245]
[1770983385371,142.4284,80.214,80.172,4.47325245]
[1770983385974,3.18880842,80.21,80.172,4.47325245]
[1770983396185,11.2284,80.214,80.172,4.47325245]
[1770983396591,11.2284,80.214,80.175,4.42448662]
[1770983396891,3.18880842,80.21,80.175,4.42448662]
[1770983397485,14.41780842,80.21,80.175,4.42448662]
[1770983398890,3.18880842,80.2,80.161,4.44241496]
[1770983400194,3.18880842,80.2,80.149,4.44241496]
[1770983400586,3.18880842,80.2,80.151,4.44241496]
[1770983400784,11.2299,80.203,80.163,4.44629699]
[1770983402794,3.18880842,80.2,80.163,4.44629699]
[1770983402988,11.2306,80.198,80.163,4.44629699]
[1770983403997,3.18880842,80.2,80.163,4.44629699]
[1770983405294,134.18,80.208,80.166,4.43560028]
[1770983406595,3.18880842,80.21,80.166,4.43560028]
[1770983406798,3.18880842,80.2,80.166,4.43560028]
[1770983407992,3.18880842,80.2,80.151,4.41066718]
[1770983408696,14.41910842,80.2,80.151,4.41066718]
[1770983408999,14.41910842,80.2,80.159,4.40479906]
[1770983409896,14.41910842,80.2,80.16,15.64059906]
[1770983411094,14.41910842,80.2,80.161,4.40494407]
[1770983412098,3.18880842,80.2,80.163,4.40494407]
[1770983412500,3.18880842,80.21,80.163,4.40494407]
[1770983413201,99.54,80.214,80.163,4.40494407]
[1770983413400,3.18880842,80.21,80.163,4.40494407]
[1770983413696,11.2286,80.213,80.171,11.2343]
[1770983414001,3.18880842,80.21,80.172,4.40140204]
[1770983416308,11.2286,80.213,80.172,4.40140204]
[1770983416807,11.2295,80.207,80.172,4.40140204]
[1770983417298,3.18880842,80.22,80.172,4.40140204]
[1770983418702,3.18880842,80.22,80.175,4.41070297]
[1770983419896,3.18880842,80.22,80.181,4.41070297]
[1770983420900,3.18880842,80.22,80.185,4.37711258]
[1770983421402,11.54728698,80.246,80.185,4.37711258]
[1770983421597,11.54728698,80.246,80.162,15.26545321]
[1770983421598,3.18880842,80.23,80.192,4.37711258]
[1770983421803,3.18880842,80.23,80.18,7.565921]
[1770983422106,3.18880842,80.22,80.18,4.37711258]
[1770983422404,3.18880842,80.21,80.18,4.37711258]
[1770983422801,3.18880842,80.21,80.167,4.35265168]
[1770983423903,14.41780842,80.21,80.167,4.35265168]
[1770983424406,11.2299,80.203,80.167,4.35265168]
[1770983424608,3.18880842,80.2,80.151,4.35265168]
[1770983425600,11.54728698,80.225,80.147,15.26545321]
[1770983425601,3.18880842,80.21,80.169,4.42540711]
[1770983425801,11.2283,80.215,80.169,4.42540711]
[1770983426401,14.41780842,80.21,80.169,4.42540711]
[1770983426910,14.41559921,80.21,80.169,4.42540711]
[1770983428107,14.41559921,80.21,80.171,4.38949051]
[1770983436319,3.18659921,80.19,80.148,4.25785768]
[1770983436522,3.18659921,80.2,80.151,4.25785768]
[1770983436818,11.2296,80.205,80.161,4.25647555]
[1770983437620,3.18659921,80.2,80.161,4.25647555]
[1770983438213,14.41699921,80.2,80.161,4.25647555]
[1770983438814,11.2312,80.194,80.161,4.25647555]
[1770983440321,14.41699921,80.2,80.161,4.25647555]
[1770983444232,11.2311,80.195,80.161,4.25647555]
[1770983449430,11.2301,80.202,80.161,4.25647555]
[1770983449925,3.18659921,80.21,80.163,4.26704559]
[1770983450131,3.18659921,80.22,80.171,4.26704559]
[1770983451732,11.2292,80.208,80.171,4.26704559]
[1770983458042,3.18659921,80.21,80.171,4.26704559]
[1770983458240,11.2283,80.215,80.171,4.26704559]
[1770983460837,14.41559921,80.21,80.171,4.26704559]
[1770983461739,11.229,80.21,80.171,4.26704559]
[1770983464245,14.41559921,80.21,80.171,4.26704559]
[1770983465238,11.2279,80.218,80.173,4.27180892]
[1770983465747,3.18659921,80.24,80.181,4.27180892]
[1770983466841,11.226,80.231,80.191,4.27131027]
[1770983468454,3.18659921,80.23,80.191,4.27131027]
[1770983469350,3.18659921,80.22,80.18,4.2814899]
[1770983469947,11.229,80.21,80.17,7.46808911]
[1770983470548,11.229,80.21,80.171,4.2814899]
[1770983470852,14.41559921,80.21,80.165,11.2351]
[1770983471553,14.41559921,80.21,80.165,15.53843376]
[1770983471750,11.2297,80.205,80.165,15.53843376]
[1770983471943,11.2297,80.205,80.16,3.18659921]
[1770983471944,3.18659921,80.2,80.158,11.2361]
[1770983472147,3.18659921,80.2,80.154,4.30333376]
[1770983473755,11.2313,80.194,80.154,4.30333376]
[1770983475659,11.2321,80.188,80.154,4.30333376]
[1770983475858,3.18659921,80.19,80.144,4.17114643]
[1770983477156,3.18659921,80.18,80.144,4.17114643]
[1770983478353,11.2326,80.184,80.144,4.17114643]
[1770983478665,3.18659921,80.21,80.161,4.17748421]
[1770983479155,3.18659921,80.21,80.162,4.17913886]
[1770983479961,11.2288,80.212,80.166,4.17913886]
[1770983480560,3.18659921,80.21,80.166,4.17913886]
[1770983480951,0.07176193,80.212,80.166,4.17913886]
[1770983481657,0.07176193,80.212,80.17,4.14323914]
[1770983482959,3.18659921,80.22,80.171,4.1399118]
[1770983483454,0.07841661,80.224,80.178,4.1399118]
[1770983483661,0.07841661,80.224,80.181,4.1399118]
[1770983484756,0.07841661,80.224,80.183,4.12752503]
[1770983487761,11.228,80.217,80.183,4.12752503]
[1770983489064,3.18547596,80.22,80.183,4.12752503]
[1770983490467,11.2277,80.219,80.183,4.12752503]
[1770983492872,3.18547596,80.21,80.166,4.20627381]
[1770983493372,14.41447596,80.21,80.166,4.20627381]
[1770983493972,11.229,80.21,80.166,4.20627381]
[1770983494872,11.229,80.21,80.169,4.2128111]
[1770983497077,11.229,80.21,80.136,22.9684412]
[1770983497078,3.18547596,80.21,80.166,4.20783692]
[1770983498884,11.2308,80.197,80.166,4.20783692]
[1770983499081,3.18547596,80.21,80.166,4.20783692]
[1770983499484,11.2305,80.199,80.166,4.20783692]
[1770983499876,3.18547596,80.21,80.166,4.20783692]
[1770983500387,3.18547596,80.21,80.168,4.19240483]
[1770983500688,3.18547596,80.22,80.168,4.19240483]
[1770983500875,3.18547596,80.22,80.17,3.18547596]
[1770983501080,3.18547596,80.22,80.171,4.17667866]
[1770983501282,3.18547596,80.21,80.171,4.17667866]
[1770983502377,11.2296,80.205,80.171,4.17667866]
[1770983503579,11.2305,80.199,80.171,4.17667866]
[1770983504993,11.2305,80.199,80.156,4.18456309]
[1770983508086,11.2297,80.205,80.16,3.18547596]
[1770983508292,3.18547596,80.21,80.161,4.18756215]
[1770983508690,3.18547596,80.2,80.161,4.18756215]
[1770983509189,37.85032516,80.235,80.161,4.18756215]
[1770983509190,3.18547596,80.21,80.161,4.18756215]
[1770983509394,11.2321,80.188,80.161,4.18756215]
[1770983509696,11.2321,80.188,80.144,4.18561216]
[1770983510095,11.2328,80.183,80.144,4.18561216]
[1770983510700,14.41727596,80.19,80.144,4.18561216]
[1770983510997,3.18547596,80.18,80.144,4.18561216]
[1770983511693,11.2334,80.179,80.144,4.18561216]
[1770983515298,11.2342,80.173,80.144,4.18561216]
[1770983518200,3.18547596,80.18,80.144,4.18561216]
[1770983518201,11.2333,80.179,80.144,4.18561216]
[1770983518402,3.18547596,80.18,80.144,4.18561216]
[1770983518902,11.2333,80.179,80.144,4.18561216]
[1770983519100,3.18547596,80.19,80.144,4.18561216]
[1770983520702,11.2319,80.189,80.146,11.2378]
[1770983520904,11.2319,80.189,80.147,4.2083244]
[1770983521504,11.2319,80.189,80.149,4.2083244]
[1770983522100,3.18547596,80.19,80.151,4.2083244]
[1770983522603,3.18547596,80.18,80.151,4.2083244]
[1770983523303,3.18547596,80.19,80.151,4.2083244]
[1770983523800,127.72,80.219,80.134,4.20532493]
[1770983523801,11.2338,80.176,80.134,4.20532493]
[1770983524599,11.2326,80.184,80.135,4.20532493]
[1770983525204,11.2334,80.179,80.14,4.24612283]
[1770983526105,11.2334,80.179,80.141,4.24612283]
[1770983527804,11.2323,80.186,80.145,4.20205655]
[1770983528199,11.54728698,80.216,80.145,4.20205655]
[1770983528402,3.18547596,80.2,80.151,4.20205655]
[1770983528907,11.2309,80.196,80.151,4.20205655]
[1770983531195,11.2319,80.189,80.151,4.20205655]
[1770983531609,3.18547596,80.19,80.153,4.24959629]
[1770983531905,11.231,80.196,80.153,4.24959629]
[1770983532800,11.231,80.196,80.155,4.28489169]
[1770983533609,11.2299,80.203,80.161,4.28489169]
[1770983534407,3.18547596,80.22,80.171,4.28489169]
[1770983534802,3.18547596,80.23,80.181,4.26898349]
[1770983535308,11.228,80.217,80.181,4.26898349]
[1770983537005,3.18547596,80.22,80.181,4.26898349]
[1770983537200,11.227,80.224,80.181,4.26898349]
[1770983537907,322.68026828,80.251,80.18,3.18547596]
[1770983537908,11.2259,80.232,80.185,4.37322993]
[1770983538108,3.18547596,80.25,80.191,4.37322993]
[1770983538513,3.18547596,80.25,80.204,4.37322993]
[1770983538813,191.86026828,80.251,80.211,4.37322993]
[1770983539422,11.2245,80.242,80.187,11.2321]
[1770983539710,11.2245,80.242,80.178,4.37076005]
[1770983539711,3.18547596,80.25,80.201,4.37076005]
[1770983540516,11.2215,80.263,80.213,4.37076005]
[1770983541015,3.18547596,80.25,80.201,4.37246933]
[1770983541203,11.2233,80.25,80.211,4.37246933]
[1770983541515,3.18547596,80.26,80.211,4.37246933]
[1770983542214,11.2231,80.252,80.211,4.37246933]
[1770983543011,11.2221,80.259,80.211,4.37246933]
[1770983543713,11.2229,80.253,80.211,4.37246933]
[1770983544403,11.2229,80.253,80.165,15.26545321]
[1770983544404,11.2217,80.262,80.221,4.34633582]
[1770983544808,11.2217,80.262,80.23,3.18547596]
[1770983545004,192.16828521,80.274,80.23,3.18547596]
[1770983545005,11.2203,80.272,80.231,4.34583745]
[1770983545615,11.2188,80.283,80.241,4.34583745]
[1770983547012,3.18547596,80.3,80.251,4.35452032]
[1770983547715,3.18547596,80.3,80.25,3.18547596]
[1770983547716,11.2165,80.299,80.253,4.35452032]
[1770983548410,3.18547596,80.29,80.241,4.35452032]
[1770983548619,3.18547596,80.28,80.241,4.35452032]
[1770983549207,3.18547596,80.27,80.22,14.41287596]
[1770983549406,3.18547596,80.26,80.221,4.40576986]
[1770983549610,3.18547596,80.25,80.208,4.40576986]
[1770983549805,174.4758,80.301,80.208,4.40576986]
[1770983549806,3.18547596,80.24,80.208,4.40576986]
[1770983550412,3.18547596,80.24,80.19,3.18547596]
[1770983550619,3.18547596,80.27,80.221,4.40576986]
[1770983550917,3.18213466,80.27,80.221,4.40576986]
[1770983551318,3.18213466,80.26,80.221,4.40576986]
[1770983551518,3.18213466,80.25,80.221,4.40576986]
[1770983551715,3.18213466,80.25,80.201,4.48848583]
[1770983552214,11.2246,80.241,80.206,4.48848583]
[1770983554520,11.2256,80.235,80.206,4.48848583]
[1770983554719,11.2256,80.235,80.2,3.18213466]
[1770983555720,11.2256,80.235,80.201,4.43320242]
[1770983557623,11.2236,80.249,80.201,4.43320242]
[1770983560221,3.18213466,80.25,80.203,4.43133776]
[1770983561317,11.2237,80.248,80.203,4.43133776]
[1770983564420,3.18213466,80.24,80.191,4.42897712]
[1770983565520,3.18213466,80.24,80.195,4.42827901]
[1770983565921,11.2237,80.248,80.2,3.18213466]
[1770983566221,11.2237,80.248,80.201,4.42827901]
[1770983566825,11.2237,80.248,80.203,4.44429981]
[1770983570623,11.2226,80.256,80.211,4.4340702]
[1770983571322,11.2234,80.25,80.211,4.4340702]
[1770983572524,11.2243,80.243,80.211,4.4340702]
[1770983572832,3.18213466,80.26,80.211,4.4340702]
[1770983573727,11.2235,80.249,80.211,4.4340702]
[1770983575325,11.2235,80.249,80.2,14.41233466]
[1770983575530,11.2243,80.243,80.2,18.85906745]
[1770983575730,11.2243,80.243,80.201,4.44673279]
[1770983576129,11.2235,80.249,80.204,4.44673279]
[1770983576834,11.2245,80.242,80.204,4.44673279]
[1770983578236,14.40563466,80.25,80.204,4.44673279]
[1770983578430,11.2235,80.25,80.204,4.44673279]
[1770983579734,11.2235,80.25,80.207,11.2293]
[1770983579935,11.2235,80.25,80.208,4.44132527]
[1770983581336,14.40563466,80.25,80.208,15.67052527]
[1770983581537,14.40563466,80.25,80.209,4.44045754]
[1770983582237,14.40563466,80.25,80.208,11.2292]
[1770983582238,14.40563466,80.25,80.211,4.44045754]
[1770983582439,11.2235,80.25,80.211,4.44045754]
[1770983583042,11.2225,80.257,80.213,4.47426662]
[1770983585037,3.18213466,80.26,80.215,4.48422336]
[1770983585437,3.18213466,80.25,80.215,4.48422336]
[1770983585639,3.18213466,80.25,80.194,4.48422336]
[1770983586239,3.18213466,80.24,80.194,4.48422336]
[1770983586743,3.18213466,80.24,80.198,4.50737376]
[1770983586945,11.2244,80.243,80.198,4.50737376]
[1770983589146,11.2244,80.243,80.2,3.18213466]
[1770983589342,22.4396,80.276,80.212,4.51310718]
[1770983589343,3.18213466,80.26,80.212,4.51310718]
[1770983590750,11.2232,80.251,80.212,4.51310718]
[1770983592943,11.2223,80.258,80.214,4.52347026]
[1770983593350,3.18213466,80.26,80.214,4.52347026]
[1770983593652,3.18213466,80.26,80.167,30.53090643]
[1770983593653,11.2216,80.263,80.22,3.18213466]
[1770983593856,3.18213466,80.28,80.231,4.52347026]
[1770983594753,11.2202,80.273,80.231,4.52347026]
[1770983596852,11.2211,80.266,80.231,4.52347026]
[1770983597054,3.18213466,80.27,80.231,4.52347026]
[1770983597454,11.2212,80.266,80.231,4.52347026]
[1770983598956,11.2202,80.273,80.231,4.52347026]
[1770983599657,11.2209,80.268,80.231,4.52347026]
[1770983600153,3.18213466,80.27,80.22,7.6427016]
[1770983600350,3.18213466,80.27,80.22,4.46056694]
[1770983601056,3.18213466,80.27,80.221,4.47607954]
[1770983601756,11.2215,80.264,80.221,4.47607954]
[1770983603959,11.2215,80.264,80.222,4.46502444]
[1770983604556,11.2205,80.27,80.231,4.46502444]
[1770983607660,3.18213466,80.29,80.232,4.47110874]
[1770983608159,11.219,80.281,80.232,4.47110874]
[1770983608656,11.2181,80.288,80.234,4.47110874]
[1770983608856,3.18213466,80.31,80.251,4.4723874]
[1770983609057,3.18213466,80.32,80.271,4.4723874]
[1770983609759,3.18213466,80.31,80.265,11.2211]
[1770983610255,3.18213466,80.3,80.265,11.2211]
[1770983610655,3.18213466,80.31,80.265,11.2211]
[1770983610864,3.17897036,80.31,80.265,11.2211]
[1770983611866,11.2142,80.316,80.272,4.4531867]
[1770983612055,3.17897036,80.33,80.281,4.4531867]
[1770983612365,14.38977036,80.34,80.291,4.4531867]
[1770983613864,14.38977036,80.34,80.292,4.45281148]
[1770983615361,14.38977036,80.34,80.294,4.43550682]
[1770983615559,11.2097,80.348,80.3,3.17897036]
[1770983616165,11.2097,80.348,80.3,7.61469616]
[1770983616868,11.2097,80.348,80.301,4.43787392]
[1770983617960,11.2086,80.356,80.311,4.43787392]
[1770983618466,5.99e-05,80.331,80.301,11.2162]
[1770983618658,5.99e-05,80.331,80.3,3.17897036]
[1770983618969,5.99e-05,80.331,80.29,3.17897036]
[1770983619169,5.99e-05,80.331,80.291,4.4469746]
[1770983620265,3.17897036,80.33,80.291,4.4469746]
[1770983620566,5.99e-05,80.331,80.291,4.4469746]
[1770983620764,11.2122,80.33,80.291,4.4469746]
[1770983621367,5.99e-05,80.331,80.291,4.4469746]
[1770983622770,11.2122,80.33,80.291,4.4469746]
[1770983623265,5.99e-05,80.331,80.291,4.4469746]
[1770983623470,11.2131,80.324,80.291,4.4469746]
[1770983623668,3.17897036,80.33,80.291,4.4469746]
[1770983623868,5.99e-05,80.331,80.291,4.4469746]
[1770983626065,5.99e-05,80.331,80.301,4.52759219]
[1770983626671,5.99e-05,80.331,80.311,4.52759219]
[1770983630074,5.99e-05,80.331,80.321,4.53293841]
[1770983632179,11.2061,80.374,80.321,4.53293841]
[1770983632970,3.17897036,80.37,80.321,4.53293841]
[1770983633374,11.2075,80.364,80.321,4.53293841]
[1770983633670,3.17897036,80.36,80.31,3.17897036]
[1770983633974,3.17897036,80.36,80.311,4.51892934]
[1770983635078,3.17897036,80.35,80.311,4.51892934]
[1770983636982,11.2096,80.349,80.311,4.51892934]
[1770983638677,11.2085,80.356,80.311,4.51892934]
[1770983638981,11.2085,80.356,80.321,4.53645503]
[1770983640279,11.2094,80.35,80.321,4.53645503]
[1770983640478,3.17897036,80.35,80.301,4.53645503]
[1770983641784,3.17897036,80.33,80.281,4.52951936]
[1770983642279,174.293,80.385,80.232,15.26545321]
[1770983642280,11.2142,80.316,80.261,11.2217]
[1770983642474,3.17897036,80.3,80.262,4.52951936]
[1770983642678,3.17897036,80.31,80.262,4.52951936]
[1770983643479,3.17897036,80.3,80.253,4.55145728]
[1770983643674,3.17897036,80.31,80.271,4.55145728]
[1770983644582,3.17897036,80.3,80.253,4.55145728]
[1770983646286,11.2165,80.299,80.253,4.55145728]
[1770983648289,101.36,80.331,80.253,4.55145728]
[1770983648290,11.2181,80.288,80.253,4.55145728]
[1770983648493,11.2181,80.288,80.241,4.44319216]
[1770983649591,11.2189,80.282,80.241,4.44319216]
[1770983650180,101.36,80.331,80.241,4.44319216]
[1770983650181,11.2198,80.275,80.241,4.44319216]
[1770983650496,11.2198,80.275,80.23,3.17897036]
[1770983651287,11.2209,80.268,80.229,4.44212737]
[1770983651684,3.17897036,80.27,80.218,11.2277]
[1770983652089,59.8685,80.316,80.218,11.2277]
[1770983652090,3.17897036,80.26,80.218,11.2277]
[1770983652396,3.17897036,80.26,80.217,4.44878167]
[1770983652892,11.2221,80.259,80.217,15.67668167]
[1770983653082,3.17897036,80.26,80.217,15.67668167]
[1770983654385,11.2209,80.268,80.221,11.2274]
[1770983655695,3.17897036,80.26,80.211,11.2287]
[1770983656087,3.17897036,80.25,80.206,4.46291064]
[1770983656897,11.2236,80.249,80.206,4.46291064]
[1770983657790,3.17897036,80.24,80.206,4.46291064]
[1770983659497,3.17897036,80.24,80.202,11.23]